[Event "WchT 10th"]
[Site "Tsaghkadzor"]
[Date "2015.04.28"]
[Round "9.2"]
[White "Sutovsky, Emil"]
[Black "Karjakin, Sergey"]
[Result "1/2-1/2"]
[ECO "C91"]
[WhiteElo "2623"]
[BlackElo "2757"]
[PlyCount "184"]
[EventDate "2015.04.19"]
[EventType "team-tourn"]
[EventRounds "9"]
[EventCountry "ARM"]
[SourceTitle "CBM 166"]
[Source "ChessBase"]
[SourceDate "2015.05.11"]
[SourceVersion "1"]
[SourceVersionDate "2015.05.11"]
[SourceQuality "1"]
[WhiteTeam "Israel"]
[BlackTeam "Russia"]
[WhiteTeamCountry "ISR"]
[BlackTeamCountry "RUS"]
[TimeControl "40/5400+30:1800+30"]

1. e4 e5 2. Nf3 Nc6 3. Bb5 a6 4. Ba4 Nf6 5. O-O Be7 6. Re1 b5 7. Bb3 d6 8. c3
O-O 9. d4 Bg4 10. Be3 Bh5 11. Nbd2 Na5 12. dxe5 dxe5 13. h3 Nxb3 14. Qxb3 Nd7
15. Qd5 Bd6 16. a4 Nf6 17. Qc6 Qe8 18. Qxe8 Rfxe8 19. Nh4 Nd7 20. Nf5 f6 21.
Nb3 Bf8 22. Na5 Bf7 23. Nc6 bxa4 24. Rxa4 Nb6 25. Raa1 Nc4 26. b4 Re6 27. Na5
Nxe3 28. Nxe3 Rc8 29. Nd5 c5 30. bxc5 Rxc5 31. c4 Re8 32. Reb1 Bg6 33. f3 f5
34. exf5 Bxf5 35. Re1 Bd3 36. Kh1 e4 37. Nf4 Rcc8 38. Nxd3 exd3 39. Red1 Re3
40. Rab1 Bd6 41. c5 Rxc5 42. Nb7 Rd5 43. Nxd6 Rxd6 44. Rb3 a5 45. Ra3 Rd5 46.
Kg1 Kf7 47. Kf2 Re2+ 48. Kf1 Re3 49. Kf2 Re2+ 50. Kf1 Re6 51. Rdxd3 Rxd3 52.
Rxd3 a4 53. Ra3 Ra6 54. Ke2 Ke6 55. Kd3 Kd5 56. Kc2 h5 57. Re3 Re6 58. Ra3 Ra6
59. Re3 Re6 60. Ra3 Rc6+ 61. Kb2 Ra6 62. Kc2 Ke5 63. g3 Kd4 64. Rd3+ Kc4 65.
Rd7 g6 66. Re7 a3 67. Re4+ Kd5 68. Kb1 Rb6+ 69. Ka2 Rb2+ 70. Kxa3 Rg2 71. g4
Rg3 72. Rf4 Ke5 73. Re4+ Kd5 74. Rf4 Rxh3 75. Kb2 Ke5 76. Re4+ Kf6 77. gxh5
gxh5 78. Kc2 Rxf3 79. Kd2 Kg5 80. Ke2 Rf8 81. Re7 h4 82. Rg7+ Kh5 83. Rh7+ Kg4
84. Rg7+ Kh3 85. Rg6 Kh2 86. Rg4 h3 87. Rg7 Ra8 88. Kf2 Ra2+ 89. Kf1 Rg2 90.
Rf7 Kh1 91. Rf3 h2 92. Rf8 Rg4 1/2-1/2

[Event "Khanty-Mansiysk FIDE GP"]
[Site "Khanty-Mansiysk"]
[Date "2015.05.16"]
[Round "3"]
[White "Karjakin, Sergey"]
[Black "Dominguez Perez, Leinier"]
[Result "1/2-1/2"]
[ECO "C00"]
[WhiteElo "2753"]
[BlackElo "2734"]
[PlyCount "60"]
[EventDate "2015.05.14"]
[EventType "tourn"]
[EventRounds "11"]
[EventCountry "RUS"]
[EventCategory "21"]
[SourceTitle "CBM 167"]
[Source "ChessBase"]
[SourceDate "2015.07.13"]
[SourceVersion "1"]
[SourceVersionDate "2015.07.13"]
[SourceQuality "1"]
[TimeControl "40/7200:20/3600:900+30"]

1. Nf3 {[%emt 0:00:03]} Nf6 {[%emt 0:00:10]} 2. g3 {[%emt 0:00:13]} d5 {
[%emt 0:00:27]} 3. Bg2 {[%emt 0:00:14]} e6 {[%emt 0:00:10]} 4. O-O {[%emt 0:01:
03]} Be7 {[%emt 0:00:15]} 5. d3 {[%emt 0:01:54]} O-O {[%emt 0:00:28]} 6. Nbd2 {
[%emt 0:00:03]} c5 {[%emt 0:00:10]} 7. e4 {[%emt 0:01:02]} Nc6 {[%emt 0:00:06]}
8. Re1 {[%emt 0:00:42]} b5 {[%emt 0:00:12]} 9. e5 {[%emt 0:00:36]} Nd7 {
[%emt 0:00:18]} 10. Nf1 {[%emt 0:00:31]} Bb7 {[%emt 0:01:42]} 11. h4 {[%emt 0:
13:35]} Qc7 {[%emt 0:00:37]} 12. Bf4 {[%emt 0:03:21]} Rfc8 {[%emt 0:01:12]} 13.
Ne3 $146 {[%emt 0:22:22]} (13. N1h2 Qd8 14. h5 h6 15. c3 a5 16. Qd2 d4 17. Ng4
dxc3 18. bxc3 Bf8 19. Nfh2 Rab8 20. Be4 b4 21. cxb4 axb4 22. Bxh6 gxh6 23.
Nxh6+ Bxh6 24. Qxh6 Ncxe5 25. Bh7+ Kh8 26. Bg6+ Kg8 27. Rxe5 Nxe5 28. Bh7+ Kh8
29. Be4+ Kg8 30. Bh7+ Kh8 31. Bg6+ Kg8 32. Bh7+ Kh8 33. Bg6+ Kg8 34. Bh7+ {
1/2-1/2 (34) Andreikin,D (2723)-Bukavshin,I (2618) Sochi 2015}) 13... Qd8 {
[%emt 0:05:31]} 14. Ng4 {[%emt 0:01:08]} Bf8 {[%emt 0:07:37] In the King's
Indian Attack, if White doesn't sacrifice anything on the kingside he has no
way of creating an advantage. Dominguez placed all of his pieces in such a way
that any sacrifice was basically impossible. The simplifications and opening
of the queenside slowly favored Black, but not by much.} 15. c4 {[%emt 0:18:11]
} Ne7 {[%emt 0:08:24]} 16. b3 {[%emt 0:06:50]} Bc6 {[%emt 0:06:18]} 17. h5 {
[%emt 0:06:37]} h6 {[%emt 0:02:55]} 18. Ne3 {[%emt 0:00:43]} Nb6 {[%emt 0:09:
30]} 19. Qe2 {[%emt 0:03:14]} bxc4 {[%emt 0:12:40]} 20. dxc4 {[%emt 0:02:09]}
dxc4 {[%emt 0:00:21]} 21. bxc4 {[%emt 0:00:47]} Na4 {[%emt 0:00:36]} 22. Qc2 {
[%emt 0:14:36]} Rab8 {[%emt 0:08:23]} 23. Reb1 {[%emt 0:00:39]} Qa5 {[%emt 0:
05:41]} 24. Rb3 {[%emt 0:00:26]} Nb6 {[%emt 0:02:08]} 25. Qe2 {[%emt 0:06:28]}
Nd7 {[%emt 0:03:32]} 26. Rab1 {[%emt 0:02:46]} Qc7 {[%emt 0:11:39]} 27. g4 {
[%emt 0:02:53]} Be4 {[%emt 0:03:15]} 28. Rxb8 {[%emt 0:01:07]} Rxb8 {[%emt 0:
01:48]} 29. Rxb8 {[%emt 0:00:01]} Qxb8 {[%emt 0:00:07]} 30. Nf1 {[%emt 0:00:38]
} Bc6 {[%emt 0:04:14] The final position is given as clear black advantage by
the engines, but to human eyes (at least mine) it looks like the position is
close to equal, maybe a very slight edge for Black.} 1/2-1/2

[Event "Khanty-Mansiysk FIDE GP"]
[Site "Khanty-Mansiysk"]
[Date "2015.05.26"]
[Round "11"]
[White "Karjakin, Sergey"]
[Black "Gelfand, Boris"]
[Result "1/2-1/2"]
[ECO "B94"]
[WhiteElo "2753"]
[BlackElo "2744"]
[PlyCount "65"]
[EventDate "2015.05.14"]
[EventType "tourn"]
[EventRounds "11"]
[EventCountry "RUS"]
[EventCategory "21"]
[SourceTitle "CBM 167"]
[Source "ChessBase"]
[SourceDate "2015.07.13"]
[SourceVersion "1"]
[SourceVersionDate "2015.07.13"]
[SourceQuality "1"]
[TimeControl "40/7200:20/3600:900+30"]

1. e4 {[%emt 0:00:02]} c5 {[%emt 0:00:02]} 2. Nf3 {[%emt 0:00:06]} d6 {[%emt 0:
00:02]} 3. d4 {[%emt 0:00:06]} cxd4 {[%emt 0:00:02]} 4. Nxd4 {[%emt 0:00:06]}
Nf6 {[%emt 0:00:02]} 5. Nc3 {[%emt 0:00:11]} a6 {[%emt 0:00:05]} 6. Bg5 {
[%emt 0:00:07]} Nbd7 {[%emt 0:00:06]} 7. a4 {[%emt 0:00:08]} e6 {[%emt 0:00:27]
} 8. a5 {[%emt 0:00:28]} Be7 {[%emt 0:03:22]} 9. Be2 {[%emt 0:00:15]} O-O {
[%emt 0:00:30]} 10. O-O {[%emt 0:00:06]} Qc7 {[%emt 0:00:11]} (10... Nc5 11.
Bf3 Qc7 12. Re1 Rb8 13. Qd2 Rd8 14. Be3 b5 15. axb6 Rxb6 16. b3 Rb8 17. Nde2
Bb7 18. Ng3 Rbc8 19. Bd4 Ncd7 20. Rac1 Ne5 21. Na4 Nxf3+ 22. gxf3 Nd7 23. Qe3
Rf8 24. Nb6 Nxb6 25. Bxb6 Qd7 26. Bd4 Bh4 27. Red1 f5 28. Be5 Qf7 29. Bxd6 f4
30. Qa7 fxg3 31. hxg3 Qxf3 32. Bxf8 Qxe4 33. f3 Qxf3 {0-1 (33) Motylev,A (2648)
-Artemiev,V (2671) St Petersburg 2015}) 11. Qd3 $146 {[%emt 0:01:12]} ({
Prédécesseur (7):} 11. Nb3 Ne5 12. Be3 Bd7 13. Bb6 Qc8 14. Nd2 Bc6 15. Bd4 Qc7
16. Be3 Rac8 17. f4 Ng6 18. Bd3 Qb8 19. g4 h6 20. h4 Nxh4 21. g5 Nh7 22. Qh5
hxg5 23. fxg5 Ng6 24. Rf3 Rfd8 25. Raf1 Nhf8 26. Rh3 e5 27. Bc4 d5 28. exd5 Bb5
29. Nxb5 Rxc4 30. Nxc4 axb5 31. Qf3 f6 32. d6 Rxd6 33. Nxd6 Qxd6 34. gxf6 Bxf6
35. Rd1 Qe7 36. Qd5+ Ne6 37. Qd7 Ngf4 38. Bxf4 Nxf4 39. Qc8+ {1-0 (39)
Naroditsky,D (2633)-Gao,R (2533) Reykjavik 2015}) 11... h6 {[%emt 0:23:57]} 12.
Bd2 {[%emt 0:03:11]} Nc5 {[%emt 0:03:35]} 13. Qe3 {[%emt 0:28:47]} d5 {[%emt 0:
26:35] A strange line of the Najdorf... it is not common that in this Sicilian
black ends up with an isolated queen's pawn! Gelfand's compensation for this
structural weakness came in the way of good piece play and swift development.
Karjakin had trouble coordinating his pieces, and it was never natural for him
to develop. The game was agreed drawn with a dynamic balance on the board.} 14.
exd5 {[%emt 0:02:11]} exd5 {[%emt 0:03:56]} 15. Bf3 {[%emt 0:08:43]} Rd8 {
[%emt 0:10:31]} 16. Rfe1 {[%emt 0:11:35]} Bd6 {[%emt 0:03:17]} 17. g3 {[%emt 0:
07:51]} Ne6 {[%emt 0:13:20]} 18. Qd3 {[%emt 0:04:06]} Nc5 {[%emt 0:03:13]} 19.
Qe2 {[%emt 0:01:42]} Bh3 {[%emt 0:01:44]} 20. Be3 {[%emt 0:02:27]} Be5 {
[%emt 0:02:58]} 21. Qd1 {[%emt 0:03:42]} Nce4 {[%emt 0:03:23]} 22. Nce2 {
[%emt 0:00:35]} Bg4 {[%emt 0:02:27]} 23. c3 {[%emt 0:01:09]} Qd7 {[%emt 0:05:
11]} 24. Bg2 {[%emt 0:02:12]} Nd6 {[%emt 0:00:54]} 25. f3 {[%emt 0:01:43]} Nc4
{[%emt 0:02:08]} 26. Bc1 {[%emt 0:01:12]} Bh3 {[%emt 0:00:06]} 27. Bxh3 {
[%emt 0:03:17]} Qxh3 {[%emt 0:00:01]} 28. b3 {[%emt 0:00:15]} Nd6 {[%emt 0:00:
03]} 29. Nf4 {[%emt 0:00:05]} Bxd4+ {[%emt 0:01:17]} 30. Qxd4 {[%emt 0:00:08]}
Qc8 {[%emt 0:01:21]} 31. Qd3 {[%emt 0:01:58]} Nb5 {[%emt 0:00:16]} 32. Ne2 {
[%emt 0:00:49]} Nd7 {[%emt 0:00:34]} 33. Nd4 {[%emt 0:02:43]} 1/2-1/2

[Event "Tata Steel-A 79th"]
[Site "Wijk aan Zee"]
[Date "2017.01.15"]
[Round "2"]
[White "Rapport, Richard"]
[Black "Karjakin, Sergey"]
[Result "1/2-1/2"]
[ECO "A01"]
[WhiteElo "2702"]
[BlackElo "2785"]
[PlyCount "60"]
[EventDate "2017.01.14"]
[EventType "tourn"]
[EventRounds "13"]
[EventCountry "NED"]
[EventCategory "21"]
[SourceTitle "CBM 177"]
[Source "ChessBase"]
[SourceDate "2017.03.16"]
[SourceVersion "1"]
[SourceVersionDate "2017.03.16"]
[SourceQuality "1"]
[TimeControl "40/6000+30:20/3000+30:900+30"]

1. b3 {[%emt 0:00:00]} e5 {[%emt 0:00:24]} 2. Bb2 {[%emt 0:00:00]} Nc6 {
[%emt 0:00:10]} 3. e3 {[%emt 0:00:06]} Nf6 {[%emt 0:00:24]} 4. Bb5 {[%emt 0:00:
11]} Bd6 {[%emt 0:00:08]} 5. Na3 {[%emt 0:00:07]} e4 {[%emt 0:00:57]} 6. Nc4 {
[%emt 0:00:31]} Be7 {[%emt 0:00:06]} 7. Bxc6 {[%emt 0:00:06]} bxc6 {[%emt 0:00:
27]} 8. Ne2 {[%emt 0:00:28]} O-O {[%emt 0:00:06]} 9. O-O {[%emt 0:00:22]} a5 {
[%emt 0:00:21]} 10. d3 $146 {[%emt 0:00:54]} (10. Ng3 d5 11. Ne5 Qe8 12. c4 Bd6
13. d4 exd3 14. Nxd3 Ne4 15. cxd5 cxd5 16. Nf4 Bxf4 17. exf4 Nxg3 18. hxg3 Qd7
19. Re1 Bb7 20. Qd4 f6 21. a4 Rfe8 22. Qc5 Qc6 23. Rxe8+ Rxe8 24. Qxc6 Bxc6 25.
Rc1 Re2 26. Bxf6 gxf6 27. Rxc6 d4 28. Rxc7 d3 29. Rd7 d2 30. Kh2 h5 31. g4 h4
32. f3 Kf8 33. f5 Ke8 34. Rd5 Rf2 35. b4 {1-0 (35) Jobava,B (2710)-Bacrot,E 
(2702) Fujairah 2012}) 10... a4 {[%emt 0:00:41]} 11. Ng3 {[%emt 0:20:56]} d5 {
[%emt 0:28:28]} 12. Ne5 {[%emt 0:08:20]} Qe8 {[%emt 0:08:10]} 13. dxe4 {
[%emt 0:03:03]} Nxe4 {[%emt 0:00:33]} 14. Nd3 {[%emt 0:09:42]} Bd6 {[%emt 0:04:
21]} 15. b4 {[%emt 0:03:19]} Nxg3 {[%emt 0:04:16]} 16. hxg3 {[%emt 0:00:45]} a3
{[%emt 0:00:04]} 17. Bd4 {[%emt 0:02:04]} Ba6 {[%emt 0:00:26]} 18. Re1 {
[%emt 0:16:34]} Bc4 {[%emt 0:05:21]} 19. Nc5 {[%emt 0:03:17]} f6 {[%emt 0:00:
39]} 20. f4 {[%emt 0:09:36]} Qg6 {[%emt 0:06:10]} 21. Kf2 {[%emt 0:00:17]} Rfb8
{[%emt 0:01:21]} 22. c3 {[%emt 0:01:54]} Rb5 {[%emt 0:11:56]} 23. g4 {[%emt 0:
01:10]} Bxc5 {[%emt 0:06:06]} 24. Bxc5 {[%emt 0:01:07]} Qe4 {[%emt 0:07:40]}
25. Bd4 {[%emt 0:05:40]} Rab8 {[%emt 0:00:14]} 26. Qf3 {[%emt 0:01:28]} h6 {
[%emt 0:03:48]} 27. Kg3 {[%emt 0:02:31]} Re8 {[%emt 0:00:36]} 28. Rad1 {
[%emt 0:03:19]} Qc2 {[%emt 0:01:20]} 29. Qf2 {[%emt 0:02:29]} Qxf2+ {[%emt 0:
02:59]} 30. Kxf2 {[%emt 0:00:43]} Rbb8 {[%emt 0:00:10]} 1/2-1/2

[Event "Tata Steel-A 79th"]
[Site "Wijk aan Zee"]
[Date "2017.01.17"]
[Round "4"]
[White "Harikrishna, Pentala"]
[Black "Karjakin, Sergey"]
[Result "1/2-1/2"]
[ECO "C54"]
[WhiteElo "2766"]
[BlackElo "2785"]
[PlyCount "60"]
[EventDate "2017.01.14"]
[EventType "tourn"]
[EventRounds "13"]
[EventCountry "NED"]
[EventCategory "21"]
[SourceTitle "CBM 177"]
[Source "ChessBase"]
[SourceDate "2017.03.16"]
[SourceVersion "1"]
[SourceVersionDate "2017.03.16"]
[SourceQuality "1"]
[TimeControl "40/6000+30:20/3000+30:900+30"]

1. e4 {[%emt 0:00:00]} e5 {[%emt 0:00:38]} 2. Nf3 {[%emt 0:00:00]} Nc6 {
[%emt 0:00:05]} 3. Bc4 {[%emt 0:00:00]} Bc5 {[%emt 0:00:08]} 4. O-O {[%emt 0:
00:08]} Nf6 {[%emt 0:00:03]} 5. d3 {[%emt 0:00:10]} O-O {[%emt 0:00:07]} 6. h3
{[%emt 0:00:06]} d6 {[%emt 0:00:20]} 7. c3 {[%emt 0:00:08]} a6 {[%emt 0:00:09]}
8. Re1 {[%emt 0:00:19]} Ba7 {[%emt 0:00:16]} 9. Bb3 {[%emt 0:00:07]} Re8 {
[%emt 0:00:43]} 10. Nbd2 {[%emt 0:04:22]} Be6 {[%emt 0:00:22]} 11. Nf1 {
[%emt 0:00:42]} h6 {[%emt 0:00:41]} 12. Be3 {[%emt 0:06:05]} Bxe3 {[%emt 0:00:
26]} 13. Nxe3 {[%emt 0:00:08]} Qd7 {[%emt 0:00:20]} 14. Nh2 {[%emt 0:12:51]}
Bxb3 $146 {[%emt 0:08:17]} (14... d5 15. Nhg4 Nxg4 16. exd5 Nxe3 17. dxe6 Nxd1
18. exd7 Re7 19. Bxd1 Rxd7 20. Bf3 f6 21. d4 exd4 22. cxd4 Rxd4 23. Rac1 Rd6
24. Re3 Rad8 25. Rb3 Nd4 26. Rxb7 Nxf3+ 27. gxf3 Rd1+ 28. Rxd1 Rxd1+ 29. Kg2
Rd2 30. b4 Rxa2 {1/2-1/2 (30) Spasov,V (2539)-Feller,S (2622) Bol 2015}) 15.
axb3 {[%emt 0:02:48]} Ne7 {[%emt 0:03:55]} 16. b4 {[%emt 0:05:04]} d5 {[%emt 0:
01:14]} 17. Nhg4 {[%emt 0:12:12]} Nxg4 {[%emt 0:00:12]} 18. Qxg4 {[%emt 0:06:
03]} Rad8 {[%emt 0:12:30]} 19. exd5 {[%emt 0:14:00]} Qxg4 {[%emt 0:00:18]} 20.
hxg4 {[%emt 0:04:50]} Nxd5 {[%emt 0:00:14]} 21. Nxd5 {[%emt 0:01:49]} Rxd5 {
[%emt 0:00:07]} 22. d4 {[%emt 0:00:15]} Kf8 {[%emt 0:00:20]} 23. dxe5 {[%emt 0:
01:52]} Rexe5 {[%emt 0:00:28]} 24. Rxe5 {[%emt 0:00:45]} Rxe5 {[%emt 0:00:06]}
25. Kf1 {[%emt 0:00:59]} Ke7 {[%emt 0:00:11]} 26. Rd1 {[%emt 0:00:06]} h5 {
[%emt 0:00:45]} 27. gxh5 {[%emt 0:00:08]} Rxh5 {[%emt 0:00:03]} 28. Ke2 {
[%emt 0:00:09]} Re5+ {[%emt 0:00:06]} 29. Kf1 {[%emt 0:00:30]} Rh5 {[%emt 0:00:
17]} 30. Ke2 {[%emt 0:00:04]} Re5+ {[%emt 0:00:04]} 1/2-1/2

[Event "Tata Steel-A 79th"]
[Site "Wijk aan Zee"]
[Date "2017.01.20"]
[Round "6"]
[White "Eljanov, Pavel"]
[Black "Karjakin, Sergey"]
[Result "1/2-1/2"]
[ECO "C65"]
[WhiteElo "2755"]
[BlackElo "2785"]
[PlyCount "70"]
[EventDate "2017.01.14"]
[EventType "tourn"]
[EventRounds "13"]
[EventCountry "NED"]
[EventCategory "21"]
[SourceTitle "CBM 177"]
[Source "ChessBase"]
[SourceDate "2017.03.16"]
[SourceVersion "1"]
[SourceVersionDate "2017.03.16"]
[SourceQuality "1"]
[TimeControl "40/6000+30:20/3000+30:900+30"]

1. e4 {[%emt 0:00:00]} e5 {[%emt 0:00:59]} 2. Nf3 {[%emt 0:00:00]} Nc6 {
[%emt 0:00:04]} 3. Bb5 {[%emt 0:00:33]} Nf6 {[%emt 0:00:31]} 4. d3 {[%emt 0:00:
11]} Bc5 {[%emt 0:00:09]} 5. Bxc6 {[%emt 0:00:10]} dxc6 {[%emt 0:00:07]} 6. Qe2
{[%emt 0:00:44]} Nd7 {[%emt 0:00:18]} 7. Nc3 $146 {[%emt 0:01:27]} (7. Be3 Bd6
8. d4 O-O 9. Nbd2 Re8 10. O-O-O Qe7 11. Kb1 exd4 12. Nxd4 Nf6 13. f3 c5 14.
N4b3 b6 15. Qf2 a5 16. Nc4 Ba6 {1/2-1/2 (16) Alekseev,E (2632)-Jakovenko,D 
(2704) Khanty-Mansiysk 2016}) 7... O-O {[%emt 0:01:43]} 8. Nd1 {[%emt 0:11:31]}
Re8 {[%emt 0:07:31]} 9. Ne3 {[%emt 0:01:18]} Nf8 {[%emt 0:01:31]} 10. g3 {
[%emt 0:14:38]} Ne6 {[%emt 0:05:05]} 11. Nf5 {[%emt 0:03:12]} Bf8 {[%emt 0:08:
44]} 12. h4 {[%emt 0:04:41]} c5 {[%emt 0:04:15]} 13. h5 {[%emt 0:09:19]} Qf6 {
[%emt 0:16:39]} 14. c4 {[%emt 0:16:34]} b5 {[%emt 0:08:52]} 15. Ne3 {[%emt 0:
08:07]} a6 {[%emt 0:16:29]} 16. Bd2 {[%emt 0:03:32]} Bb7 {[%emt 0:00:24]} 17.
Nd5 {[%emt 0:05:50]} Qd8 {[%emt 0:00:29]} 18. b3 {[%emt 0:04:02]} Rc8 {[%emt 0:
16:12]} 19. Kf1 {[%emt 0:02:01]} h6 {[%emt 0:02:49]} 20. a4 {[%emt 0:05:20]} c6
{[%emt 0:08:12]} 21. Ne3 {[%emt 0:00:15]} Nd4 {[%emt 0:00:06]} 22. Nxd4 {
[%emt 0:00:13]} cxd4 {[%emt 0:00:53]} 23. Nf5 {[%emt 0:00:17]} c5 {[%emt 0:00:
12]} 24. axb5 {[%emt 0:03:02]} axb5 {[%emt 0:00:06]} 25. Kg2 {[%emt 0:03:21]}
Qd7 {[%emt 0:01:16]} 26. Qg4 {[%emt 0:04:30]} Kh7 {[%emt 0:00:07]} 27. Ra5 {
[%emt 0:03:48]} Bc6 {[%emt 0:01:34]} 28. Rha1 {[%emt 0:01:13]} Rb8 {[%emt 0:01:
27]} 29. Ra7 {[%emt 0:01:14]} Rb7 {[%emt 0:00:01]} 30. R7a6 {[%emt 0:02:44]}
bxc4 {[%emt 0:01:16]} 31. bxc4 {[%emt 0:00:04]} Reb8 {[%emt 0:00:45]} 32. R1a2
{[%emt 0:01:13]} Rb6 {[%emt 0:02:26]} 33. Ra7 {[%emt 0:00:19]} R6b7 {[%emt 0:
00:13]} 34. R7a6 {[%emt 0:00:38]} Rb6 {[%emt 0:00:20]} 35. Ra7 {[%emt 0:00:38]}
R6b7 {[%emt 0:00:06]} 1/2-1/2

[Event "Tata Steel-A 79th"]
[Site "Wijk aan Zee"]
[Date "2017.01.24"]
[Round "9"]
[White "Wojtaszek, Radoslaw"]
[Black "Karjakin, Sergey"]
[Result "1/2-1/2"]
[ECO "E15"]
[WhiteElo "2750"]
[BlackElo "2785"]
[PlyCount "65"]
[EventDate "2017.01.14"]
[EventType "tourn"]
[EventRounds "13"]
[EventCountry "NED"]
[EventCategory "21"]
[SourceTitle "CBM 177"]
[Source "ChessBase"]
[SourceDate "2017.03.16"]
[SourceVersion "1"]
[SourceVersionDate "2017.03.16"]
[SourceQuality "1"]
[TimeControl "40/6000+30:20/3000+30:900+30"]

1. d4 {[%emt 0:00:00]} Nf6 {[%emt 0:00:06]} 2. c4 {[%emt 0:00:00]} e6 {[%emt 0:
00:04]} 3. Nf3 {[%emt 0:00:00]} b6 {[%emt 0:00:41]} 4. g3 {[%emt 0:00:00]} Ba6
{[%emt 0:00:05]} 5. b3 {[%emt 0:00:00]} Bb4+ {[%emt 0:00:07]} 6. Bd2 {[%emt 0:
00:05]} Be7 {[%emt 0:00:04]} 7. Bg2 {[%emt 0:00:15]} c6 {[%emt 0:01:14]} 8. Bc3
{[%emt 0:00:52]} d5 {[%emt 0:00:09]} 9. O-O {[%emt 0:00:55]} Nbd7 {[%emt 0:00:
58]} 10. Nbd2 {[%emt 0:00:14]} O-O {[%emt 0:06:35]} 11. Qc2 {[%emt 0:00:22]}
Bb7 {[%emt 0:12:46]} (11... c5 12. e4 dxc4 13. Nxc4 b5 14. Ba5 Qe8 15. Ne3 Bb7
16. d5 exd5 17. exd5 Bd8 18. Bc3 Bc7 19. Rfe1 Qb8 20. Rad1 Re8 21. Nf5 Rxe1+
22. Rxe1 Bd6 23. N3h4 Bf8 24. Ne7+ Bxe7 25. Rxe7 g6 26. Qd2 Qf8 27. d6 Bxg2 28.
Nxg2 Re8 29. Qe2 Rxe7 30. dxe7 Qb8 31. Nf4 Ne8 32. Nd5 b4 33. Ba1 Qd6 34. Qe4
f6 35. Qc4 Kg7 36. g4 Nb6 37. Nxb6 axb6 38. Qe2 Kf7 39. h3 Qxe7 40. Qc4+ Qe6
41. Qc1 {Goloshchapov,A (2586)-Karjakin,S (2771) Dubai 2014 0-1}) 12. Rfd1 {
[%emt 0:11:25]} c5 {[%emt 0:06:57]} 13. dxc5 {[%emt 0:06:36]} bxc5 {[%emt 0:01:
22]} 14. Ne5 {[%emt 0:04:30]} Nxe5 {[%emt 0:13:58]} 15. Bxe5 {[%emt 0:00:07]}
Qb6 {[%emt 0:00:03]} 16. cxd5 {[%emt 0:20:00]} exd5 {[%emt 0:00:07]} 17. Rac1 {
[%emt 0:01:11]} Rac8 {[%emt 0:05:22]} 18. e3 {[%emt 0:04:31]} Rfd8 {[%emt 0:02:
05]} 19. Qf5 {[%emt 0:06:31]} g6 {[%emt 0:02:34]} 20. Qf4 {[%emt 0:09:00]} Nh5
{[%emt 0:00:35]} 21. Qg4 {[%emt 0:02:41]} Nf6 {[%emt 0:04:30]} 22. Qf4 {
[%emt 0:01:35]} Nh5 {[%emt 0:00:46]} 23. Qf3 {[%emt 0:03:22]} Qe6 {[%emt 0:01:
44]} 24. Bb2 {[%emt 0:00:15]} Rd7 {[%emt 0:17:52]} 25. Qe2 {[%emt 0:01:42]} Bf6
{[%emt 0:00:29]} 26. Bxf6 {[%emt 0:07:57]} Nxf6 {[%emt 0:00:12]} 27. Qb5 {
[%emt 0:01:26]} Rdc7 {[%emt 0:01:09]} 28. Qa4 {[%emt 0:05:15]} Kg7 {[%emt 0:01:
41]} 29. Qf4 {[%emt 0:04:36]} h6 {[%emt 0:01:53]} 30. h4 {[%emt 0:00:06]} Nh5 {
[%emt 0:06:17]} 31. Qa4 {[%emt 0:00:38]} Nf6 {[%emt 0:00:09]} 32. Qf4 {[%emt 0:
00:14]} Nh5 {[%emt 0:00:06]} 33. Qa4 {[%emt 0:00:04]} 1/2-1/2

[Event "Tata Steel-A 79th"]
[Site "Wijk aan Zee"]
[Date "2017.01.28"]
[Round "12"]
[White "Karjakin, Sergey"]
[Black "Nepomniachtchi, Ian"]
[Result "1/2-1/2"]
[ECO "B91"]
[WhiteElo "2785"]
[BlackElo "2767"]
[PlyCount "42"]
[EventDate "2017.01.14"]
[EventType "tourn"]
[EventRounds "13"]
[EventCountry "NED"]
[EventCategory "21"]
[SourceTitle "CBM 177"]
[Source "ChessBase"]
[SourceDate "2017.03.16"]
[SourceVersion "1"]
[SourceVersionDate "2017.03.16"]
[SourceQuality "1"]
[TimeControl "40/6000+30:20/3000+30:900+30"]

1. e4 {[%emt 0:00:00]} c5 {[%emt 0:00:17]} 2. Nf3 {[%emt 0:00:00]} d6 {[%emt 0:
00:05]} 3. d4 {[%emt 0:00:00]} cxd4 {[%emt 0:00:05]} 4. Nxd4 {[%emt 0:00:00]}
Nf6 {[%emt 0:00:07]} 5. Nc3 {[%emt 0:00:00]} a6 {[%emt 0:00:05]} 6. g3 {
[%emt 0:00:16]} e5 {[%emt 0:00:08]} 7. Nb3 {[%emt 0:00:04]} Be7 {[%emt 0:00:12]
} 8. Bg2 {[%emt 0:00:08]} O-O {[%emt 0:00:09]} 9. O-O {[%emt 0:00:06]} Be6 {
[%emt 0:00:03]} 10. a4 {[%emt 0:00:53]} Nbd7 {[%emt 0:00:05]} 11. Re1 {[%emt 0:
00:39]} Rc8 {[%emt 0:00:03]} 12. Nd2 {[%emt 0:01:13]} Bg4 {[%emt 0:00:04]} (
12... Nb6 13. Nf1 d5 14. exd5 Nfxd5 15. Nxd5 Nxd5 16. c3 f6 17. Ne3 Nxe3 18.
Bxe3 Qc7 19. Bd5 Qd7 20. Bg2 Rfd8 21. Bb6 Qxd1 22. Rexd1 Rxd1+ 23. Rxd1 Kf7 24.
a5 Rb8 25. f4 exf4 26. gxf4 Ke8 27. Kf2 Bd7 28. Re1 Kf8 29. Rd1 Ke8 30. Bd5 Bc6
31. Be6 Bd8 32. Ke3 Bxb6+ 33. axb6 Ke7 34. Bf5 g6 35. Bc2 Rc8 36. h4 f5 37. h5
Be8 38. hxg6 hxg6 39. Rh1 Bf7 40. Kd4 Rc4+ 41. Ke3 Rc6 42. Kd4 {Wei,Y (2707)
-Nepomniachtchi,I (2767) Doha 2016 1/2-1/2 (72)}) 13. Bf3 {[%emt 0:00:18]} Bxf3
{[%emt 0:00:51]} 14. Nxf3 $146 {[%emt 0:00:49]} (14. Qxf3 Nc5 15. b3 Ne6 16.
Nc4 Nd4 17. Qd3 b5 18. Ne3 Nf3+ 19. Kf1 Nxe1 20. Kxe1 Qd7 21. axb5 axb5 22.
Nxb5 d5 23. Ra7 Bb4+ 24. Bd2 Bxd2+ 25. Kxd2 Nxe4+ 26. Qxe4 Qxb5 27. Qxe5 Rce8
28. Qd4 Re4 29. Qd3 Qc5 30. Ra4 Rxa4 31. bxa4 d4 32. Nf5 Rd8 33. Kd1 g6 34. Nh4
Qa5 35. Qb5 Qc3 36. Qb3 Qa1+ 37. Kd2 Qf1 38. Qf3 Re8 39. Ng2 Qc4 40. a5 Qb4+
41. Kc1 Qxa5 42. Qc6 Qa3+ 43. Kd2 Qa5+ {Swati,G (2226)-Gomes,M (2418) Kolkata
2013 0-1}) 14... Re8 {[%emt 0:00:46]} 15. Be3 {[%emt 0:12:24]} Nb6 {[%emt 0:01:
34]} 16. Rb1 {[%emt 0:09:28]} Nc4 {[%emt 0:01:36]} 17. Qd3 {[%emt 0:10:23]} d5
{[%emt 0:16:46]} 18. Nxd5 {[%emt 0:06:17]} Nxd5 {[%emt 0:00:21]} 19. Qxd5 {
[%emt 0:00:05]} Qxd5 {[%emt 0:00:58]} 20. exd5 {[%emt 0:00:27]} e4 {[%emt 0:00:
05]} 21. Nd2 {[%emt 0:11:16]} Nxd2 {[%emt 0:26:18]} 1/2-1/2